Cogmind - Beta 17 @@@ ROGUE MODE // 2026.06.29 @ 01:27:28 Player: leto Result: Destroyed by XW-HNQ(B) with Slug Cannon Performance ------------- Evolutions (5) 2500 Regions Visited (16) 3200 Robots Destroyed (114) 570 Value Destroyed (4139) 4139 Prototype IDs (45) 900 Alien Tech Used (0) 0 Bonus (2486) 2486 TOTAL SCORE: 13795 Bonus ------- High Alert Combat Kills 116 Follower Combat Kills 1091 Entered Garrisons 200 Used RIF Installer 500 Entered DSFs 500 Aligned with FarCom 300 Friendly Fire -221 Cogmind --------- Core Integrity 0/1000 Matter 300/300 Energy 100/100 System Corruption 0% Temperature Cool (1) Movement Flying (35) Location -5/Warlord Parts ------- > --- POWER (1) -------- (None) > --- PROPULSION (4) --- Cooled Nuclear Pulse Thruster > --- UTILITY (10) ----- Improved Terrain Scan Processor Improved Targeting Computer Hacking Suite Hacking Suite Hacking Suite Hacking Suite Advanced Hacking Suite Advanced System Shield > --- WEAPON (2) ------- Plasma Sword (fused) > --- INVENTORY (5) ---- Micro Fission Core Improved Weapon Shielding System Shield System Shield Authchip [Device] Peak State ------------ > --- POWER ------------ Micro Fission Core > --- PROPULSION ------- Improved Cesium-ion Thruster Cooled Nuclear Pulse Thruster Cooled Nuclear Pulse Thruster Cooled Nuclear Pulse Thruster > --- UTILITY ---------- Medium Storage Unit Improved Terrain Scan Processor Improved Targeting Computer Experimental Utility Shielding Improved Weapon Shielding Hacking Suite Hacking Suite Advanced System Shield Advanced Drone Bay > --- WEAPON ----------- Plasma Sword > --- INVENTORY -------- Micro Fission Core Field Propulsion Drive Hacking Suite Hacking Suite Advanced Hacking Suite System Shield Authchip [Device] Relay Coupler [NC] Proton Missile Launcher Improved Remote Datajack [Rating: 82] Favorites ----------- Power Heavy Ion Engine Engine Heavy Ion Engine Power Core Micro Fission Core Propulsion Armored Treads Treads Armored Treads Leg Aluminum Leg Flight Unit Improved Cesium-ion Thruster Utility Hacking Suite Device Improved Sensor Array Storage Huge Storage Unit Processor Melee Analysis Suite Hackware Hacking Suite Protection Light Armor Plating Weapon Improved Assault Rifle Energy Gun Spread Laser Ballistic Gun Improved Assault Rifle Launcher Missile Launcher Special Weapon Remote Datajack Impact Weapon Flail Slashing Weapon Longsword +1 Special Melee Weapon Datajack Build | -11 -10 -10 -10 -9 -8 -8 -8 -8 -6 -6 -6 -6 -5 -5 -5 -5 ------- Run | Yrd Mat Min Exi Min Mat Sto Gar Rec Fac Was Fac DSF Fac Upp Upp War Slots Evolved 10 | . . . . . 4 . . . 4 . . . 2 . . . Power . | . . . . . . . . . . . . . . . . . Propulsion 2 | . . . . . 2 . . . . . . . . . . . Utility 8 | . . . . . 2 . . . 4 . . . 2 . . . Weapon . | . . . . . . . . . . . . . . . . . Parts Attached 139 | 7 10 3 1 2 40 7 1 2 22 . . 5 32 3 4 . Power 18 | 2 2 . . . 4 1 . 1 3 . . 1 4 . . . Engine 13 | 2 2 . . . 2 1 . 1 3 . . 1 1 . . . Core 5 | . . . . . 2 . . . . . . . 3 . . . Reactor . | . . . . . . . . . . . . . . . . . Propulsion 32 | 2 1 1 . 1 14 . . . 8 . . . 4 1 . . Treads 15 | 2 1 1 . 1 9 . . . 1 . . . . . . . Leg 6 | . . . . . 3 . . . 3 . . . . . . . Wheel . | . . . . . . . . . . . . . . . . . Hover . | . . . . . . . . . . . . . . . . . Flight 11 | . . . . . 2 . . . 4 . . . 4 1 . . Utility 62 | 1 4 . . . 13 2 . . 10 . . 4 22 2 4 . Device 20 | . 2 . . . 4 . . . 4 . . 2 5 2 1 . Storage 6 | 1 1 . . . 2 . . . 1 . . 1 . . . . Processor 5 | . . . . . 2 . . . . . . 1 2 . . . Hackware 18 | . . . . . . . . . 2 . . . 13 . 3 . Protection 13 | . 1 . . . 5 2 . . 3 . . . 2 . . . Artifact . | . . . . . . . . . . . . . . . . . Weapon 27 | 2 3 2 1 1 9 4 1 1 1 . . . 2 . . . Energy Gun 6 | 2 2 1 . 1 . . . . . . . . . . . . Energy Cannon . | . . . . . . . . . . . . . . . . . Ballistic Gun 12 | . . . . . 8 3 . . 1 . . . . . . . Ballistic Cannon . | . . . . . . . . . . . . . . . . . Launcher 3 | . . 1 . . . 1 1 . . . . . . . . . Special Weapon 2 | . . . . . . . . 1 . . . . 1 . . . Impact Weapon 1 | . 1 . . . . . . . . . . . . . . . Slashing Weapon 2 | . . . . . 1 . . . . . . . 1 . . . Piercing Weapon . | . . . . . . . . . . . . . . . . . Special Melee Weapon 1 | . . . 1 . . . . . . . . . . . . . Unidentified Prototypes 10 | . . . . . 4 2 . . . . . . 4 . . . Corrupted Parts 2 | . . . . . . . . . . . . . 2 . . . System Corruption 6 | . . . . . . . . . . . . . 6 . . . Parts Lost 52 | . 3 3 . 1 13 1 . 1 11 . . 2 11 1 5 . Power 8 | . 1 1 . . . 1 . 1 1 . . 1 1 . 1 . Propulsion 20 | . 1 1 . 1 5 . . . 5 . . . 3 1 3 . Utility 17 | . 1 . . . 5 . . . 3 . . 1 6 . 1 . Weapon 7 | . . 1 . . 3 . . . 2 . . . 1 . . . Highest Loss Streak 6 | . 2 3 . 1 3 1 . 1 4 . . 2 6 1 5 . To Critical Strikes . | . . . . . . . . . . . . . . . . . Average Backups 17 | 1 11 13 12 11 16 24 25 24 19 10 10 8 9 10 9 5 Power . | . 1 . 1 1 1 . . . . 1 1 . 1 1 1 1 Propulsion 5 | . 2 2 2 1 6 11 10 8 4 . . . . 1 . . Utility 6 | . 1 2 2 2 3 7 8 10 9 8 8 7 6 6 6 4 Weapon 3 | . 6 7 6 6 4 4 5 4 3 1 1 . . 1 . . Tool/Special . | . . . . . . . . . . . . . . . . . Unused Backups 29 | . 2 . . . 1 4 3 4 4 . . 2 3 . 2 4 Power 2 | . . . . . . . . . . . . . 1 . . 1 Propulsion 8 | . 1 . . . 1 1 1 3 1 . . . . . . . Utility 12 | . . . . . . 1 2 . 1 . . 2 2 . 1 3 Weapon 6 | . . . . . . 2 . 1 2 . . . . . 1 . Tool/Special 1 | . 1 . . . . . . . . . . . . . . . Average Slot Usage (%) 93 | . 92 96 100 100 87 99 100 99 83 93 93 92 90 85 85 58 Engine 7 | . 13 14 14 14 7 8 9 8 4 6 6 5 . . . . Core 1 | . . . . . 1 . . . . . . . 4 5 4 . Treads 22 | . 27 26 28 28 21 36 36 36 13 . . . . . . . Leg 1 | . . . . . 4 . . . 2 . . . . . . . Flight 6 | . . . . . 4 . . . 4 26 26 26 23 23 21 5 Device 8 | . 1 14 14 14 11 9 9 9 13 6 6 5 4 2 4 . Storage 8 | . 14 14 14 14 9 9 9 9 6 6 6 6 5 5 4 . Processor 6 | . . . . . 4 9 9 9 6 6 6 9 6 11 11 11 Hackware 6 | . . . . . . . . . 12 13 13 13 25 18 18 35 Protection 7 | . 6 . . . 5 9 9 9 6 13 13 13 10 11 9 . Energy Gun 4 | . 26 24 14 26 3 . . . . . . . . . . . Ballistic Gun 8 | . . . . . 12 17 17 10 7 . . . . . . . Special Weapon 1 | . . . . . . . . 7 1 6 6 4 . . . . Slashing Weapon 1 | . . . . . . . . . 1 6 6 4 4 5 5 5 Peak Build Rating 82 | 6 11 11 11 11 34 42 42 37 61 55 55 60 76 82 80 44 Average Rating 37 | 3 9 10 10 10 26 36 37 34 44 55 55 54 69 73 69 44 On Entrance 35 | . 6 10 11 11 11 34 38 37 35 55 55 55 49 71 73 44 Avg Prop Armor Cover (%) 7 | . . . . . 7 . 7 7 7 . . . . . . . Naked Turns . | . . . . . . . . . . . . . . . . . Heaviest Build 103 | 14 33 30 30 30 99 98 101 98 103 24 24 24 23 31 22 3 Greatest Support 80 | 40 40 40 40 40 80 80 80 80 80 24 24 24 33 25 25 6 Greatest Overweight (x) 6 | . 1 1 . . 4 1 1 1 6 . . . 1 1 . . Average Overweight (x) . | . . . . . . 1 1 1 . . . . . . . . Largest Inventory Capacity 25 | 8 15 15 15 15 25 25 25 25 25 10 10 10 10 10 10 5 Average Capacity 18 | 6 12 15 15 15 18 25 25 25 22 10 10 10 10 10 9 5 Most Carried 25 | 2 15 15 15 15 25 25 25 25 25 10 10 10 10 10 10 5 Average Carried 17 | 1 11 13 15 14 17 24 24 24 19 10 10 8 9 9 9 5 Final Capacity 25 | 8 15 15 15 15 25 25 25 25 10 10 10 10 10 10 5 5 Final Carried 25 | 2 15 15 15 14 25 25 25 25 10 10 10 10 10 9 5 5 Class Distribution -------------------- 31% | Commander-Skirmisher 20% | Mutant 17% | Hacker-Scout 13% | Skirmisher 6% | Scavenger-Mutant 4% | Hacker-Sprinter Dominant Class ---------------- Mutant | -10/Materials Mutant | -10/Mines Mutant | -10/Exiles Mutant | -9/Mines Skirmisher | -8/Materials Commander-Skirmisher | -8/Storage Commander-Skirmisher | -8/Garrison Commander-Skirmisher | -8/Recycling Hacker-Skirmisher | -6/Factory Hacker-Scout | -6/Waste Hacker-Scout | -6/Factory Hacker-Scout | -6/DSF Hacker-Scout | -5/Factory Hacker-Sprinter | -5/Upper Caves Hacker-Sprinter | -5/Upper Caves Wizard-Mutant | -5/Warlord Resources | -11 -10 -10 -10 -9 -8 -8 -8 -8 -6 -6 -6 -6 -5 -5 -5 -5 ----------- Run | Yrd Mat Min Exi Min Mat Sto Gar Rec Fac Was Fac DSF Fac Upp Upp War Matter Collected 3945 | 251 246 6 . 3 1217 268 325 135 879 . . 7 516 . 92 . Remotely . | . . . . . . . . . . . . . . . . . Salvage Created 4556 | . 659 39 . 3 1405 441 229 455 901 . . . 424 . . . Parts 248 | . 53 4 . 2 85 19 10 15 32 . . . 28 . . . Haulers Intercepted 10 | . 2 . . . 4 2 . . 1 . . . 1 . . . Recyclers Shooed 3 | . . . . . 1 . . 1 1 . . . . . . . Parts Field Recycled . | . . . . . . . . . . . . . . . . . Retrieved Matter . | . . . . . . . . . . . . . . . . . Parts Self-Destructed . | . . . . . . . . . . . . . . . . . Prevented . | . . . . . . . . . . . . . . . . . Parts Restored . | . . . . . . . . . . . . . . . . . Kills | -11 -10 -10 -10 -9 -8 -8 -8 -8 -6 -6 -6 -6 -5 -5 -5 -5 ------- Run | Yrd Mat Min Exi Min Mat Sto Gar Rec Fac Was Fac DSF Fac Upp Upp War Combat Hostiles Destroyed 76 | . 17 2 . 3 29 5 5 1 13 . . . 1 . . . Melee 3 | . . . . . 2 . . . . . . . 1 . . . Guns 66 | . 16 . . . 27 5 4 1 13 . . . . . . . AOE 6 | . . 2 . 3 . . 1 . . . . . . . . . Classes Destroyed 14 | . 6 . . . 5 1 1 . 1 . . . . . . . Worker 2 | . 1 . . . . . . . 1 . . . . . . . Builder 3 | . 1 . . . 1 . . . . . . . 1 . . . Tunneler 1 | . . . . . 1 . . . . . . . . . . . Hauler 10 | . 2 . . . 4 2 . . 1 . . . 1 . . . Recycler 6 | . . . . . . 1 . 4 1 . . . . . . . Mechanic 1 | . . . . . . . . . 1 . . . . . . . Operator 9 | . 3 . . . 1 . . . . . . . 5 . . . Watcher 5 | . . . . . 2 . . . . . . . 3 . . . Swarmer 15 | . 6 . . 3 3 . . . 3 . . . . . . . Grunt 41 | . 11 2 . . 18 4 1 . 5 . . . . . . . Duelist 2 | . . . . . 2 . . . . . . . . . . . Sentry 11 | . . . . . 4 1 2 1 3 . . . . . . . Hunter 3 | . . . . . 2 . . . . . . . 1 . . . Programmer 5 | . . . . . . . 2 . 2 . . . 1 . . . Best Kill Streak 6 | . 4 2 . 3 4 2 3 1 6 . . . 2 . . . Combat Bots Only 5 | . 3 2 . 3 4 2 3 1 5 . . . 1 . . . Max Kills in Single Turn 3 | . 2 1 . 3 2 1 1 1 1 . . . 1 . . . Gunslinging . | . . . . . . . . . . . . . . . . . Exploded 3 | . . 1 . 3 . . 1 . . . . . . . . . Melee 1 | . . . . . 1 . . . . . . . 1 . . . Uniques/NPCs Destroyed . | . . . . . . . . . . . . . . . . . Combat | -11 -10 -10 -10 -9 -8 -8 -8 -8 -6 -6 -6 -6 -5 -5 -5 -5 -------- Run | Yrd Mat Min Exi Min Mat Sto Gar Rec Fac Was Fac DSF Fac Upp Upp War Hostile Shots Fired 866 | . 80 6 . 6 231 47 44 4 227 . . 13 138 14 50 6 Missed 264 | . 13 3 . 1 45 9 12 1 75 . . 5 60 9 28 3 Hits 602 | . 67 3 . 5 186 38 32 3 152 . . 8 78 5 22 3 Melee 6 | . . . . . 6 . . . . . . . . . . . Projectile 596 | . 67 3 . 5 180 38 32 3 152 . . 8 78 5 22 3 AOE 2 | . . . . . . . 1 . . . . . 1 . . . Critical Strikes 19 | . 1 . . . 6 1 2 1 1 . . . 5 . 1 1 Actively Blocked 2 | . . . . . . . . . . . . . 2 . . . Part Disruptions 1 | . . . . . . . 1 . . . . . . . . . Damage Taken 8993 | . 735 187 . 77 2668 596 518 44 1680 . . 236 1810 78 277 87 Core 1867 | . 162 24 . 14 231 62 . 15 244 . . 98 791 18 121 87 Absorbed by Shields 174 | . . . . . 132 . . . 30 . . 12 . . . . Redirected to Shielding 482 | . . . . . 21 . . . 103 . . 11 301 . 46 . Regen/Repaired (Parts) 175 | . . . . . 113 . . . 62 . . . . . . . Core Remaining (%) 55 | 100 . . . 20 . . . 44 . . . 59 . . . . Volleys Fired 367 | . 47 5 . 2 138 33 25 10 105 . . . 2 . . . Largest 2 | . 2 1 . 1 2 2 2 2 2 . . . 1 . . . Hottest 130 | . 105 30 . 30 130 48 48 48 55 . . . 7 . . . Shots Fired 611 | . 93 5 1 2 227 64 48 20 149 . . . 2 . . . Gun 586 | . 93 . 1 . 227 64 46 16 139 . . . . . . . Cannon . | . . . . . . . . . . . . . . . . . Launcher 9 | . . 5 . 2 . . 2 . . . . . . . . . Special 16 | . . . . . . . . 4 10 . . . 2 . . . Kinetic 456 | . . . . . 191 64 46 16 139 . . . . . . . Thermal 83 | . 46 . 1 . 36 . . . . . . . . . . . Explosive 9 | . . 5 . 2 . . 2 . . . . . . . . . Electromagnetic 47 | . 47 . . . . . . . . . . . . . . . Robot Hit Streak 30 | . 9 9 . 1 12 7 9 10 30 . . . 3 . . . Robot Miss Streak 9 | . 9 . . 1 7 1 4 2 2 . . . . . . . Penetration Max 1 | . . . . . . . . . 1 . . . . . . . Secondary Targets 9 | . 1 . . . 3 1 1 . 3 . . . . . . . Max Gunslinging Chain 1 | . 1 . . . 1 1 1 . 1 . . . . . . . Shots Hit Robots 500 | . 63 5 2 1 183 44 30 16 120 . . . 36 . . . Core Hits 270 | . 63 5 . 3 114 19 10 8 40 . . . 8 . . . Critical Kills 3 | . . . . . . . . . 3 . . . . . . . Critical Parts Destroyed 9 | . 2 . . . 4 . . . 3 . . . . . . . Critical Strikes 16 | . 3 . . . 4 . . . 6 . . . 3 . . . Destroy 10 | . . . . . 4 . . . 6 . . . . . . . Corrupt 1 | . 1 . . . . . . . . . . . . . . . Smash 2 | . 2 . . . . . . . . . . . . . . . Sever 3 | . . . . . . . . . . . . . 3 . . . Melee Attacks 165 | . 12 . 2 . 7 3 2 . 2 . . . 131 1 5 . Impact 12 | . 12 . . . . . . . . . . . . . . . Slashing 151 | . . . . . 7 3 2 . 2 . . . 131 1 5 . Piercing . | . . . . . . . . . . . . . . . . . Sneak Attacks 8 | . 1 . 2 . . . . . . . . . 5 . . . Combat Hostiles . | . . . . . . . . . . . . . . . . . Follow-up Attacks . | . . . . . . . . . . . . . . . . . Damage Inflicted 10557 | . 964 229 . 246 2988 703 771 272 2226 . . . 2158 . . . Guns 7175 | . 791 . . . 2786 689 511 189 2209 . . . . . . . Cannons . | . . . . . . . . . . . . . . . . . Explosions 830 | . 95 229 . 246 . . 260 . . . . . . . . . Melee 2398 | . 78 . . . 162 . . . . . . . 2158 . . . Ramming 154 | . . . . . 40 14 . 83 17 . . . . . . . Kinetic 5948 | . . . . . 2350 689 511 189 2209 . . . . . . . Thermal 936 | . 500 . . . 436 . . . . . . . . . . . Explosive 735 | . . 229 . 246 . . 260 . . . . . . . . . Electromagnetic 386 | . 386 . . . . . . . . . . . . . . . Impact 78 | . 78 . . . . . . . . . . . . . . . Slashing 2320 | . . . . . 162 . . . . . . . 2158 . . . Piercing . | . . . . . . . . . . . . . . . . . Highest Corruption 12 | . 3 3 3 3 . 1 2 3 7 12 12 12 12 12 12 12 Average Corruption 4 | . 2 3 3 3 . 1 1 2 4 11 12 12 6 12 12 12 Corruption Purged . | . . . . . . . . . . . . . . . . . Corruption Blocked . | . . . . . . . . . . . . . . . . . Effects 177 | . 18 3 8 . . 6 11 40 16 6 . 7 45 7 10 . Message Errors 44 | . 5 1 2 . . 3 4 9 3 1 . 2 9 3 2 . Matter Fused 36 | . 7 1 1 . . 2 3 5 6 2 . 1 5 1 2 . Heat Flow Errors 20 | . 1 1 1 . . . 1 7 2 . . . 5 . 2 . Energy Discharges 18 | . 2 . 1 . . . 1 5 . . . 1 7 . 1 . Parts Rejected 2 | . 1 . . . . . . . . . . 1 . . . . Parts Fused 7 | . . . 1 . . 1 . 1 . . . . 4 . . . Data Loss (minor) 21 | . 1 . . . . . . 7 1 . . 1 8 2 1 . Data Loss (major) 12 | . . . 1 . . . 2 1 3 . . . 4 1 . . Misfires 5 | . . . 1 . . . . 4 . . . . . . . . Alerts 4 | . . . . . . . . 1 1 . . . 1 . 1 . Misdirections 7 | . . . . . . . . . . 3 . 1 2 . 1 . Weapon Failures 1 | . 1 . . . . . . . . . . . . . . . Overload Shots . | . . . . . . . . . . . . . . . . . Overflow Damage 525 | . 55 26 . 23 . . 26 . . . . . 395 . . . Projectiles . | . . . . . . . . . . . . . . . . . Explosions 75 | . . 26 . 23 . . 26 . . . . . . . . . Melee 450 | . 55 . . . . . . . . . . . 395 . . . Knockbacks 2 | . 2 . . . . . . . . . . . . . . . Impact 2 | . 2 . . . . . . . . . . . . . . . Kinetic . | . . . . . . . . . . . . . . . . . Secondary . | . . . . . . . . . . . . . . . . . Self-Inflicted Damage 240 | . 55 148 . 37 . . . . . . . . . . . . Shots 8 | . 1 5 . 2 . . . . . . . . . . . . Rammed 18 | . . . . . 8 2 . 5 3 . . . . . . . Targets Rammed 26 | . . . . . 9 3 . 8 6 . . . . . . . Kicked 2 | . . . . . . . . . 2 . . . . . . . Crushed 6 | . . . . . 1 1 . 3 1 . . . . . . . Highest Temperature 500 | . 354 163 254 . 500 11 106 272 225 . . . 256 . 292 . Average Temperature 91 | . 99 91 114 . 133 3 13 97 29 . . . 89 . 141 . Received Heat Transfer 2856 | . 282 27 . . 1095 261 138 36 446 . . . 204 . 367 . Effects 9 | . 4 . . . 2 . . 3 . . . . . . . . Energy Bleed 1 | . 1 . . . . . . . . . . . . . . . Interference 4 | . 1 . . . . . . 3 . . . . . . . . Short Circuit 3 | . 1 . . . 2 . . . . . . . . . . . Damage (minor) 1 | . 1 . . . . . . . . . . . . . . . Siege Activations . | . . . . . . . . . . . . . . . . . Martial Activations . | . . . . . . . . . . . . . . . . . Shielding Activations . | . . . . . . . . . . . . . . . . . Robots Disrupted . | . . . . . . . . . . . . . . . . . Combat Hostiles . | . . . . . . . . . . . . . . . . . Robots Corrupted 2 | . 2 . . . . . . . . . . . . . . . Combat Hostiles 1 | . 1 . . . . . . . . . . . . . . . Parts Fried 7 | . 7 . . . . . . . . . . . . . . . Impact Corruptions 3 | . 3 . . . . . . . . . . . . . . . Robots Melted . | . . . . . . . . . . . . . . . . . Combat Hostiles . | . . . . . . . . . . . . . . . . . Parts Melted 1 | . . . . . 1 . . . . . . . . . . . Heat Transferred 1155 | . 610 . . . 545 . . . . . . . . . . . Parts Sabotaged . | . . . . . . . . . . . . . . . . . Parts Stolen . | . . . . . . . . . . . . . . . . . Parts Stripped . | . . . . . . . . . . . . . . . . . Power Chain Reactions 1 | . 1 . . . . . . . . . . . . . . . Alert | -11 -10 -10 -10 -9 -8 -8 -8 -8 -6 -6 -6 -6 -5 -5 -5 -5 ------- Run | Yrd Mat Min Exi Min Mat Sto Gar Rec Fac Was Fac DSF Fac Upp Upp War Maximum Alert Level 3 | . . . . . 1 . 3 2 1 . . . 2 . . . Low Security (%) 70 | 100 100 100 . 100 77 100 16 35 66 100 100 100 83 . . . Level 1 16 | . . . . . 22 . 9 34 33 . . . 14 . . . Level 2 6 | . . . . . . . 17 29 . . . . 1 . . . Level 3 5 | . . . . . . . 56 . . . . . . . . . Level 4 . | . . . . . . . . . . . . . . . . . Level 5 . | . . . . . . . . . . . . . . . . . High Security . | . . . . . . . . . . . . . . . . . Max Security . | . . . . . . . . . . . . . . . . . Peak Influence 1060 | . 140 53 . 79 312 189 1060 534 363 15 . 15 462 . . . Initial 477 | . . 15 . . 14 122 117 477 263 . . . 7 . . . Average 188 | . 46 16 . 59 127 78 689 301 142 3 . 3 95 . . . Influence Increases 5964 | . 516 68 . 89 960 623 963 304 883 15 . 30 1423 15 75 . Destroy 0b10 Robot/C 2440 | . 340 40 . 60 580 260 440 140 380 . . . 200 . . . Destroy 0b10 Robot/NC 225 | . 35 . . . 45 30 . 45 20 . . . 50 . . . Destroy Leader 484 | . 74 10 . 10 152 78 10 . 92 . . . 58 . . . Allied During Kill 617 | . . . . . . 157 242 78 130 . . . 10 . . . Successful Hack 228 | . 9 . . . 43 51 . 41 17 . . . 67 . . . Disable Machine 105 | . 15 . . 15 15 30 . . . . . . 30 . . . Anti-Garrison Action 250 | . . . . . . . 250 . . . . . . . . . Destroy Structure 245 | . 13 18 . 4 5 2 21 . 14 . . . 168 . . . Advance Influence 200 | . . . . . . . . . 200 . . . . . . . Partial Spotted 105 | . . . . . . . . . . 15 . . 90 . . . Lose Combat Pursuer 1065 | . 30 . . . 120 15 . . 30 . . 30 750 15 75 . Influence Decreases 5964 | . 476 108 . 50 707 734 84 1213 1034 15 . 15 976 262 202 88 Entered New Map 1265 | . . 25 . . 25 170 64 583 88 . . . 8 172 42 88 Time Decay 3330 | . 384 53 . 40 552 534 . 620 486 15 . . 476 60 110 . Search Patrol Dispatched 100 | . . . . . . . . . . . . . 100 . . . Lost Part 515 | . 30 30 . 10 130 10 . 10 110 . . 15 110 10 50 . Lost Ally 542 | . . . . . . 20 20 . 350 . . . 132 20 . . Purge Threat 212 | . 62 . . . . . . . . . . . 150 . . . Squads Dispatched 45 | . 4 . . . 5 . . . 4 . . . 32 . . . Investigation 23 | . 2 . . . 3 . . . 1 . . . 17 . . . Extermination 10 | . . . . . . . . . 2 . . . 8 . . . Reinforcement 12 | . 2 . . . 2 . . . 1 . . . 7 . . . Assault . | . . . . . . . . . . . . . . . . . Garrison . | . . . . . . . . . . . . . . . . . Intercept . | . . . . . . . . . . . . . . . . . Searches Triggered 1 | . . . . . . . . . . . . . 1 . . . Construction Impeded 1 | . . . . . 1 . . . . . . . . . . . Haulers Reinforced 1 | . . . . . . . . . 1 . . . . . . . Active Scanning Responses . | . . . . . . . . . . . . . . . . . Cargo Convoy Interrupts 1 | . . . . . . . . . . . . . 1 . . . Stealth | -11 -10 -10 -10 -9 -8 -8 -8 -8 -6 -6 -6 -6 -5 -5 -5 -5 --------- Run | Yrd Mat Min Exi Min Mat Sto Gar Rec Fac Was Fac DSF Fac Upp Upp War Distress Signals 18 | . 2 . . . 8 4 . . 2 . . . 2 . . . Communications Jammed . | . . . . . . . . . . . . . . . . . Distress Signals . | . . . . . . . . . . . . . . . . . Times Spotted 255 | . 35 2 . 3 60 16 21 6 18 6 . 2 71 6 7 2 Peak Tracking Total 17 | . 5 2 . 3 6 5 7 2 6 6 . 2 17 5 4 2 Tactical Retreats 32 | . 1 . . . 6 1 . . 1 . . 2 18 1 2 . Traps | -11 -10 -10 -10 -9 -8 -8 -8 -8 -6 -6 -6 -6 -5 -5 -5 -5 ------- Run | Yrd Mat Min Exi Min Mat Sto Gar Rec Fac Was Fac DSF Fac Upp Upp War Traps Triggered 15 | . 4 . . . 1 1 3 . 2 . . 2 2 . . . Indirectly . | . . . . . . . . . . . . . . . . . Trap Hack Attempts . | . . . . . . . . . . . . . . . . . Triggered . | . . . . . . . . . . . . . . . . . Disarmed . | . . . . . . . . . . . . . . . . . Reprogrammed . | . . . . . . . . . . . . . . . . . Reused . | . . . . . . . . . . . . . . . . . Traps Extracted . | . . . . . . . . . . . . . . . . . Installed . | . . . . . . . . . . . . . . . . . Triggered . | . . . . . . . . . . . . . . . . . Most Traps Carried 3 | . . 3 3 3 3 . . . . . . . . . . . Machines | -11 -10 -10 -10 -9 -8 -8 -8 -8 -6 -6 -6 -6 -5 -5 -5 -5 ---------- Run | Yrd Mat Min Exi Min Mat Sto Gar Rec Fac Was Fac DSF Fac Upp Upp War Machines Disabled 10 | . 1 . . 1 1 2 3 . . . . . 2 . . . Max in Single Turn 1 | . 1 . . 1 1 1 1 . . . . . 1 . . . Garrison Relay 3 | . . . . . . . 3 . . . . . . . . . Machines Repaired . | . . . . . . . . . . . . . . . . . Machines Dismantled . | . . . . . . . . . . . . . . . . . Machines Sabotaged . | . . . . . . . . . . . . . . . . . Overloaded Fab Kills . | . . . . . . . . . . . . . . . . . Hacking | -11 -10 -10 -10 -9 -8 -8 -8 -8 -6 -6 -6 -6 -5 -5 -5 -5 --------- Run | Yrd Mat Min Exi Min Mat Sto Gar Rec Fac Was Fac DSF Fac Upp Upp War Machines Accessed 64 | . 6 . 2 . 5 12 . 6 4 . 1 . 27 . 1 . Terminals 44 | . 6 . . . 3 11 . 6 3 . 1 . 14 . . . Fabricators 6 | . . . . . . . . . . . . . 6 . . . Repair Stations 2 | . . . . . 1 . . . 1 . . . . . . . Recycling Units 1 | . . . . . . . . . . . . . 1 . . . Scanalyzers 3 | . . . . . . . . . . . . . 3 . . . Garrison Access 5 | . . . . . 1 1 . . . . . . 3 . . . Total Hacks 204 | . 20 . 2 . 15 26 . 18 16 . 1 . 105 . 1 . Successful 123 | . 9 . 2 . 6 15 . 9 9 . 1 . 71 . 1 . Failed 81 | . 11 . . . 9 11 . 9 7 . . . 34 . . . Catastrophic 15 | . 1 . . . 2 2 . 1 1 . . . 8 . . . Database Lockouts . | . . . . . . . . . . . . . . . . . Manual 123 | . 15 . 1 . 9 11 . 16 9 . . . 62 . . . Terminals 138 | . 20 . . . 8 24 . 18 11 . 1 . 56 . . . Fabricators 29 | . . . . . . . . . . . . . 29 . . . Repair Stations 9 | . . . . . 4 . . . 5 . . . . . . . Recycling Units 2 | . . . . . . . . . . . . . 2 . . . Scanalyzers 11 | . . . . . . . . . . . . . 11 . . . Garrison Access 12 | . . . . . 3 2 . . . . . . 7 . . . Terminal Hacks 41 | . 4 . 2 . . 8 . 5 3 . 1 . 17 . 1 . Record 9 | . . . 1 . . 1 . 2 . . . . 5 . . . Part Schematic 4 | . . . . . . . . . . . . . 4 . . . Prototype ID Bank 1 | . . . . . . . . 1 . . . . . . . . Open Door 6 | . . . . . . 4 . . . . . . 1 . 1 . Open DSF 2 | . . . . . . . . . 1 . 1 . . . . . Level Access Points 4 | . . . . . . 1 . 1 1 . . . 1 . . . Branch Access Points 2 | . . . . . . . . 1 . . . . 1 . . . Terminal Index 1 | . . . . . . . . . . . . . 1 . . . Fabricator Index 1 | . . . . . . . . . . . . . 1 . . . Scanalyzer Index 1 | . . . . . . . . . . . . . 1 . . . Unreport Threat 2 | . 1 . . . . . . . . . . . 1 . . . Locate Traps 4 | . 2 . . . . 1 . . 1 . . . . . . . Recall Reinforcements 1 | . . . . . . . . . . . . . 1 . . . Zone Layout 2 | . 1 . . . . 1 . . . . . . . . . . Proto ID Catalog 1 | . . . 1 . . . . . . . . . . . . . Fabricator Hacks 20 | . . . . . . . . . . . . . 20 . . . Load Schematic 10 | . . . . . . . . . . . . . 10 . . . Build 10 | . . . . . . . . . . . . . 10 . . . Repair Station Hacks 7 | . . . . . 3 . . . 4 . . . . . . . Scan Component 4 | . . . . . 2 . . . 2 . . . . . . . Repair 3 | . . . . . 1 . . . 2 . . . . . . . Recycling Unit Hacks 1 | . . . . . . . . . . . . . 1 . . . Retrieve Components 1 | . . . . . . . . . . . . . 1 . . . Scanalyzer 9 | . . . . . . . . . . . . . 9 . . . Insert Component 5 | . . . . . . . . . . . . . 5 . . . Analyze 3 | . . . . . . . . . . . . . 3 . . . Retrieve Study 1 | . . . . . . . . . . . . . 1 . . . Garrison Access Hacks 2 | . . . . . . 2 . . . . . . . . . . Unlock Access 1 | . . . . . . 1 . . . . . . . . . . Coupler Status 1 | . . . . . . 1 . . . . . . . . . . Unauthorized Hacks 43 | . 5 . . . 3 5 . 4 2 . . . 24 . . . Terminals 31 | . 5 . . . 1 5 . 4 2 . . . 14 . . . Assimilate 1 | . . . . . . . . . . . . . 1 . . . Botnet 28 | . 4 . . . 1 5 . 4 2 . . . 12 . . . Operators 2 | . 1 . . . . . . . . . . . 1 . . . Fabricators 4 | . . . . . . . . . . . . . 4 . . . Fabnet 4 | . . . . . . . . . . . . . 4 . . . Repair Stations . | . . . . . . . . . . . . . . . . . Recycling Units . | . . . . . . . . . . . . . . . . . Scanalyzers . | . . . . . . . . . . . . . . . . . Garrison Access 8 | . . . . . 2 . . . . . . . 6 . . . Broadcast 4 | . . . . . 1 . . . . . . . 3 . . . Reprogram 4 | . . . . . 1 . . . . . . . 3 . . . Data Cores Recovered 3 | . . . . . . . . . . . . . 3 . . . Used 2 | . . . . . . . . . . . . . 2 . . . Hacking Detections 50 | . 5 . . . 4 7 . 6 4 . 1 . 23 . . . Full Trace Events 24 | . 2 . . . 2 1 . 4 1 . . . 14 . . . Feedback Events 2 | . . . . . . . . 1 . . . . 1 . . . Corruption 1 | . . . . . . . . 1 . . . . . . . . Hackware Fried 1 | . . . . . . . . . . . . . 1 . . . Feedback Blocked 1 | . . . . . . . . . . . . . 1 . . . Robot Schematics Acquired . | . . . . . . . . . . . . . . . . . Robots Built . | . . . . . . . . . . . . . . . . . Authchips . | . . . . . . . . . . . . . . . . . Time . | . . . . . . . . . . . . . . . . . Total Robot Build Rating . | . . . . . . . . . . . . . . . . . Part Schematics Acquired 7 | . . . . . . . . . . . . . 7 . . . Parts Built 10 | . . . . . . . . . . . . . 10 . . . Authchips 4 | . . . . . . . . . . . . . 4 . . . Time 824 | . . . . . . . . . . . . . 824 . . . Total Part Build Rating 59 | . . . . . . . . . . . . . 59 . . . Part Studies Acquired 1 | . . . . . . . . . . . . . 1 . . . Parts Repaired 3 | . . . . . 1 . . . 2 . . . . . . . Time 89 | . . . . . 13 . . . 76 . . . . . . . Parts Recycled . | . . . . . . . . . . . . . . . . . Recycled Matter . | . . . . . . . . . . . . . . . . . Retrieved Matter . | . . . . . . . . . . . . . . . . . Retrieved Components 8 | . . . . . . . . . . . . . 8 . . . Parts Scanalyzed 3 | . . . . . . . . . . . . . 3 . . . Part Schematics Acquired 3 | . . . . . . . . . . . . . 3 . . . Parts Damaged 2 | . . . . . . . . . . . . . 2 . . . Bothacking | -11 -10 -10 -10 -9 -8 -8 -8 -8 -6 -6 -6 -6 -5 -5 -5 -5 ------------ Run | Yrd Mat Min Exi Min Mat Sto Gar Rec Fac Was Fac DSF Fac Upp Upp War Used RIF Installer 1 | . . . . . . . 1 . . . . . . . . . Robots Hacked 8 | . . . 2 . . . . 1 4 . . . 1 . . . Non-combat 6 | . . . 1 . . . . 1 3 . . . 1 . . . Combat 2 | . . . 1 . . . . . 1 . . . . . . . Robot Hacks Applied 8 | . . . 2 . . . . 1 4 . . . 1 . . . parse_system 3 | . . . 2 . . . . . 1 . . . . . . . find_chute 4 | . . . . . . . . . 3 . . . 1 . . . ignore_parts 1 | . . . . . . . . 1 . . . . . . . . Relay Couplers Released 17 | . . . . . . . 17 . . . . . . . . . Machine Destruction 13 | . . . . . . . 13 . . . . . . . . . Programmers 4 | . . . . . . . 4 . . . . . . . . . Attached 1 | . . . . . . . . . . . . . 1 . . . Fabnet Peak Effective % . | . . . . . . . . . . . . . . . . . Robots Rewired 18 | . . . . . . . . 18 . . . . . . . . Allies Hacked . | . . . . . . . . . . . . . . . . . Hacks Repelled . | . . . . . . . . . . . . . . . . . Allies | -11 -10 -10 -10 -9 -8 -8 -8 -8 -6 -6 -6 -6 -5 -5 -5 -5 -------- Run | Yrd Mat Min Exi Min Mat Sto Gar Rec Fac Was Fac DSF Fac Upp Upp War Total Allies 36 | . . . . . . 10 . 18 . . . . 8 . . . Largest Group 22 | . . . . . . 10 9 22 22 . . . 4 . . . Highest-Rated Group 349 | . . . . . . 173 157 349 348 . . . 108 . . . Highest-Rated Ally 54 | . . . . . . 29 29 34 34 . . . 54 . . . Total Orders 4 | . . . . . . . . . 3 . . . . 1 . . COLLECT 1 | . . . . . . . . . 1 . . . . . . . EXPLORE 3 | . . . . . . . . . 2 . . . . 1 . . Ally Attacks 246 | . . . . . . 34 67 40 55 . . . 50 . . . Total Damage 3717 | . . . . . . 464 886 594 726 . . . 1047 . . . Kills 54 | . . . . . . 11 18 8 8 . . . 9 . . . Allies Corrupted . | . . . . . . . . . . . . . . . . . Allies Melted . | . . . . . . . . . . . . . . . . . Intel | -11 -10 -10 -10 -9 -8 -8 -8 -8 -6 -6 -6 -6 -5 -5 -5 -5 ------- Run | Yrd Mat Min Exi Min Mat Sto Gar Rec Fac Was Fac DSF Fac Upp Upp War Active Infowar (turns) 8677 | . 29 . . . 1879 1515 1371 1001 532 . . 93 2046 14 197 . Sensors 6324 | . 29 . . . 1879 1515 1371 1001 529 . . . . . . . Terrain 2882 | . . . . . . . . . 532 . . 93 2046 14 197 . Robot Analysis Total . | . . . . . . . . . . . . . . . . . Derelict Logs Recovered 3 | . . 1 . . . . . . . . . . . 1 1 . Drone Launches 6 | . . . . . . . . . 2 . . . 2 2 . . Drone Recoveries . | . . . . . . . . . . . . . . . . . Exploration | -11 -10 -10 -10 -9 -8 -8 -8 -8 -6 -6 -6 -6 -5 -5 -5 -5 ------------- Run | Yrd Mat Min Exi Min Mat Sto Gar Rec Fac Was Fac DSF Fac Upp Upp War Turns Passed 14269 | 66 1413 183 346 82 2957 1515 1371 2081 1305 89 11 126 2338 138 227 21 Spaces Moved 11010 | 37 701 95 213 45 1017 503 513 724 604 232 43 172 5118 369 565 59 Core 3 | 3 . . . . . . . . . . . . . . . . Treads 3992 | 34 701 95 213 45 939 503 513 724 225 . . . . . . . Legs 122 | . . . . . 78 . . . 44 . . . . . . . Wheels . | . . . . . . . . . . . . . . . . . Hover . | . . . . . . . . . . . . . . . . . Flight 6893 | . . . . . . . . . 335 232 43 172 5118 369 565 59 Fastest Speed 17 | 50 160 160 160 160 160 250 250 247 26 26 26 26 17 26 28 35 Average Speed 97 | 151 160 163 160 160 207 250 250 247 138 26 26 26 25 26 28 35 Slowest Speed 540 | 160 240 240 160 160 490 250 250 250 540 26 26 26 94 94 35 35 Overloaded Moves 58 | . . . . . . . . . . . . . 58 . . . Propulsion Burnouts . | . . . . . . . . . . . . . . . . . Robots Hopped 46 | . . . . . . . . . 6 . . . 39 1 . . Potential Cave-ins 2 | . . . . . . . . . . . . . . . 2 . Cave-ins Triggered . | . . . . . . . . . . . . . . . . . Exploration Rate (%) 51 | 4 93 20 60 18 53 73 51 95 11 77 2 88 81 73 66 18 Regions Visited 16 Branch Regions 8 Pre-discovered Areas 1 | . . . 1 . . . . . . . . . . . . . Known Exits Taken 5 | . . . . . . 1 . 1 . . 1 . 1 1 . . Unknown Exits Taken 7 | 1 1 1 1 1 1 . . . . . . . . . 1 . Scrap Searched 5 | . . . . . . . . . . . . . . 2 3 . Spaces Dug 107 | . 5 . . . 2 1 1 . 2 . . . 90 1 5 . Terrain Destroyed 174 | . 12 32 . 4 2 1 25 . 2 . . . 90 1 5 . Melee 107 | . 5 . . . 2 1 1 . 2 . . . 90 1 5 . Projectile . | . . . . . . . . . . . . . . . . . AOE 67 | . 7 32 . 4 . . 24 . . . . . . . . . Terrain Rammed . | . . . . . . . . . . . . . . . . . Walls Destroyed . | . . . . . . . . . . . . . . . . . Machines Disabled . | . . . . . . . . . . . . . . . . . Actions | -11 -10 -10 -10 -9 -8 -8 -8 -8 -6 -6 -6 -6 -5 -5 -5 -5 --------- Run | Yrd Mat Min Exi Min Mat Sto Gar Rec Fac Was Fac DSF Fac Upp Upp War Total 13686 | 44 872 117 217 52 1609 699 563 992 930 259 42 253 5949 405 624 59 Wait 1583 | . 73 8 . 2 351 131 5 47 157 28 . 48 658 32 43 . Move 10908 | 36 700 94 212 44 1016 502 511 723 594 231 42 171 5043 366 564 59 Hop 40 | . . . . . . . . . 4 . . . 35 1 . . Pick Up 78 | 1 16 4 1 . 18 6 4 5 2 . . 5 15 . 1 . Fast Attach 70 | 6 7 . . . 20 . . 1 11 . . 4 17 2 2 . Attach 35 | . 1 3 . 1 2 1 . . 9 . . 1 14 1 2 . Detach 9 | . . . . . 2 . . . 1 . . 1 4 . 1 . Swap 91 | 1 11 2 1 3 28 11 6 2 11 . . 3 12 . . . Drop 89 | . 5 1 1 . 18 9 4 4 13 . . 8 18 2 6 . Fire 367 | . 47 5 . 2 138 33 25 10 105 . . . 2 . . . Melee 165 | . 12 . 2 . 7 3 2 . 2 . . . 131 1 5 . Ram . | . . . . . . . . . . . . . . . . . Kick 2 | . . . . . . . . . 2 . . . . . . . Crush 24 | . . . . . 9 3 . 8 4 . . . . . . . Escape Stasis 33 | . . . . . . . 6 . 15 . . 12 . . . . Rewire 192 | . . . . . . . . 192 . . . . . . . . Trap . | . . . . . . . . . . . . . . . . . Miscellaneous . | . . . . . . . . . . . . . . . . . Route ------- -11/Scrapyard -10/Materials (discovered 3 exits: [*Mat x2] / [*Min]) -10/Mines (discovered 2 exits: [*Mat] / *Exi) -10/Exiles -9/Mines -8/Materials (discovered 3 exits: *Fac x2 / *Sto) -8/Storage (discovered 2 exits: Fac / Gar) -8/Garrison -8/Recycling -6/Factory (discovered 5 exits: Fac x4 / [*Low]) -6/Waste -6/Factory -6/DSF -5/Factory (discovered 8 exits: *Fac x4 / *Upp x2 / *Ext x2) -5/Upper Caves -5/Upper Caves -5/Warlord History --------- Turn | Location | Event 9 | -11/Scrapyard | Discovered new exit (range 15) 67 | -11/Scrapyard | Entered Materials 309 | -10/Materials | Build established: Mutant 327 | -10/Materials | Discovered new exit (range 6) 534 | -10/Materials | Discovered new exit (range 10) 933 | -10/Materials | Discovered new exit (range 6) 1319 | -10/Materials | Core integrity fell below 50% 1480 | -10/Materials | Entered Mines 1521 | -10/Mines | Lost 3 parts (1p1n1w) 1550 | -10/Mines | Discovered new exit (range 10) 1582 | -10/Mines | Learned 2 Materials zone layouts 1621 | -10/Mines | Found a hidden stash of uninstalled traps 1655 | -10/Mines | Deemed a non-threat by the Exiles lab entrance 1656 | -10/Mines | Discovered new exit (range 5) 1663 | -10/Mines | Entered Exiles 1705 | -10/Exiles | Met 8R-AWN 1734 | -10/Exiles | Met EX-HEX 1780 | -10/Exiles | Met EX-BIN 1801 | -10/Exiles | Aligned with FarCom system 1802 | -10/Exiles | Given EX-Vault access code 1841 | -10/Exiles | Opened EX-Vault 1849 | -10/Exiles | Found Longsword +1 1882 | -10/Exiles | Warned to stay clear of 0b10 Research branches 1933 | -10/Exiles | Met EX-DEC 1943 | -10/Exiles | Learned location of Zion (-7) 1996 | -10/Exiles | Discovered new exit (range 10) 2009 | -10/Exiles | Left Exiles lab with Longsword +1 2009 | -10/Exiles | Entered Mines 2072 | -9/Mines | Discovered new exit (range 13) 2091 | -9/Mines | Entered Materials 2091 | -8/Materials | Evolved 4 slots: Propulsion x2, Utility x2 2091 | -8/Materials | Discovered new exit (range 7) 2412 | -8/Materials | Repaired Lgt. Treads 2588 | -8/Materials | Build established: Scavenger-Mutant 3093 | -8/Materials | Lost 3 parts (1n1u1w) 3553 | -8/Materials | Build established: Skirmisher 4103 | -8/Materials | Discovered new exit (range 14) 4228 | -8/Materials | Build established: Mutant 4616 | -8/Materials | Discovered new exit (range 11) 4840 | -8/Materials | Build established: Skirmisher 5048 | -8/Materials | Entered Storage 5282 | -8/Storage | Core integrity fell below 50% 5670 | -8/Storage | Assisted by bots powering up and referring to "LRC-V3" 5675 | -8/Storage | Identified exit to Factory 6290 | -8/Storage | Build established: Commander-Skirmisher 6516 | -8/Storage | Identified exit to Garrison 6563 | -8/Storage | Entered Garrison 6563 | -8/Garrison | Accompanied by 9 allies 6619 | -8/Garrison | Triggered checkpoint 6913 | -8/Garrison | Triggered checkpoint 6935 | -8/Garrison | Triggered checkpoint 7033 | -8/Garrison | Installed Relay Interface Framework 7051 | -8/Garrison | Discovered new exit (range 12) 7137 | -8/Garrison | Triggered checkpoint 7150 | -8/Garrison | P-60 Hacker assimilated allied Soldier 3a 7252 | -8/Garrison | P-60 Hacker assimilated allied Trooper 3h 7258 | -8/Garrison | Garrison Relay disabled 7308 | -8/Garrison | Garrison Relay disabled 7651 | -8/Garrison | Garrison Relay disabled 7934 | -8/Garrison | Entered Recycling 7934 | -8/Recycling | Accompanied by 5 allies 7935 | -8/Recycling | Met a Zionite searching for Scraptown 8135 | -8/Recycling | P-60 Hacker assimilated allied Trooper 3e 9110 | -8/Recycling | Discovered new exit (range 5) 9680 | -8/Recycling | Identified exit to Factory 10015 | -8/Recycling | Entered Factory 10015 | -6/Factory | Accompanied by 22 allies 10015 | -6/Factory | Evolved 4 slots: Utility x4 10076 | -6/Factory | Lost 4 allies 10214 | -6/Factory | Lost 5 allies 10322 | -6/Factory | Lost 10 allies 10470 | -6/Factory | Discovered new exit (range 42) 10594 | -6/Factory | Lost 4 parts (1p2n1w) 11127 | -6/Factory | Repaired Imp. Terrain Scanner 11167 | -6/Factory | Repaired Imp. Propulsion Shielding 11288 | -6/Factory | Identified exit to Factory 11320 | -6/Factory | Sucked down chute 11320 | -6/Factory | Entered Waste 11323 | -6/Waste | Spotted C-40 Crusher 11332 | -6/Waste | Spotted C-40 Crusher 11333 | -6/Waste | Spotted C-40 Crusher 11333 | -6/Waste | Spotted C-40 Crusher 11333 | -6/Waste | Spotted C-40 Crusher 11335 | -6/Waste | EMP discharged 11335 | -6/Waste | System corruption reached 10% 11405 | -6/Waste | Discovered new exit (range 16) 11405 | -6/Waste | Spotted C-40 Crusher 11409 | -6/Waste | Entered Factory 11417 | -6/Factory | Build established: Hacker-Scout 11420 | -6/Factory | Identified exit to DSF 11420 | -6/Factory | Entered DSF 11443 | -6/DSF | Discovered exit to Factory (range 15) 11484 | -6/DSF | Additional patrols routed to DSF 11546 | -6/DSF | Entered Factory 11546 | -5/Factory | Evolved 2 slots: Utility x2 11574 | -5/Factory | Discovered new exit (range 12) 11732 | -5/Factory | Hacking Suite fried by hacking feedback 11838 | -5/Factory | Identified exit to Factory 12059 | -5/Factory | Spotted B-75 Beast 12251 | -5/Factory | Identified exit to Upper Caves 12251 | -5/Factory | Identified exit to Extension 12361 | -5/Factory | Fabricated Adv. System Shield? 12426 | -5/Factory | Fabricated Adv. System Shield (x1) 12427 | -5/Factory | Cargo convoy interrupted 12483 | -5/Factory | Fabricated Adv. Hacking Suite (x1) 12797 | -5/Factory | Fabricated Cld. Nuclear Pulse Thruster? 13125 | -5/Factory | Fabricated Cld. Nuclear Pulse Thruster? 13161 | -5/Factory | Watched by a mysterious "MATRIX" hacker 13177 | -5/Factory | Fabricated Cld. Nuclear Pulse Thruster? 13245 | -5/Factory | Fabricated Cld. Nuclear Pulse Thruster? 13353 | -5/Factory | Lost 4 allies 13426 | -5/Factory | Fabricated Exp. Utility Shielding? 13598 | -5/Factory | System corruption reached 10% 13601 | -5/Factory | Core integrity fell below 50% 13639 | -5/Factory | Lost 6 parts (1p2n2u1w) 13646 | -5/Factory | Search patrols dispatched 13673 | -5/Factory | Fabricated Cld. Nuclear Pulse Thruster? 13833 | -5/Factory | Fabricated Cld. Nuclear Pulse Thruster? 13884 | -5/Factory | Entered Upper Caves 13885 | -5/Upper Caves | Build established: Hacker-Sprinter 13895 | -5/Upper Caves | Spotted B-75 Beast 14015 | -5/Upper Caves | Identified exit to Upper Caves 14022 | -5/Upper Caves | Core integrity fell below 20% 14022 | -5/Upper Caves | Entered another Upper Caves area 14047 | -5/Upper Caves | Spotted B-75 Beast 14115 | -5/Upper Caves | Learned Factory trap positions 14244 | -5/Upper Caves | Discovered new exit (range 14) 14249 | -5/Upper Caves | Entered Warlord 14264 | -5/Warlord | Lost 5 parts (1p3n1u) 14264 | -5/Warlord | System corruption cleaned by Quarantine Array 14266 | -5/Warlord | RIF detected upon attempting to enter Warlord's base 14266 | -5/Warlord | Attacked by Warlord forces 14269 | -5/Warlord | Spotted XW-HNQ(B) 14269 | -5/Warlord | Spotted QF-N7D(B) 14270 | -5/Warlord | Destroyed by XW-HNQ(B) with Slug Cannon Last Messages --------------- Critical hit (Meltdown: +310). Exp. Utility Shielding destroyed. Dropped Relay Coupler [NC]. Dropped Adv. Terrain Scanner. System corrupted: IFF burst signal emitted. Imp. Cesium-ion Thruster destroyed. Dropped Proton Missile Launcher. Dropped Imp. Remote Datajack. Mic. Fission Core+ destroyed. Dropped Med. Storage Unit. Acquired Adv. Hacking Suite. Cld. Nuclear Pulse Thruster destroyed. Acquired 20 matter. System corrupted: Heat flow error (+133). EXIT=FOUND LOCATION=UNKNOWN GOAL=ESCAPE System quarantine in progress... ANNOUNCEMENT: Quarantine Array scanned 1 system, cleaned 1. ANNOUNCEMENT: Internal threat detected, destroy unregistered bots on sight. Map ----- +----------------------------------------------------+ | ?????????????????????????????????????????????????? | | ?????????????????????????????????????????????????? | | ?????????????????????????????????????????????????? | | ?????????????????????????????????????????????????? | | ?????????????????????????????????????????????????? | | ?????????????????????????????????????????????????? | | ?????????????????????????????????????????????????? | | ?????????????????????????????????????????????????? | | ?????????????????????????????????????????????????? | | ?????????????????????????????????????????????????? | | ?????????????????????????????????????????????????? | | ?????????????????????????????????????????????????? | | ?????????????????????????????????????????????????? | | ??????????????????????????????????????????????? ? | | ??????????????? ??????????????????????????????? | | ???????????????" ??"???????????????????????????? | | ??????????????"" ""????????????????????????????? | | ??????????????" "" ????????????????????????????? | | ???????????????? "" ????????""?????????????????? | | ????????????????? ???????#""#????????????????? | | ?????????????????? ??????#""#????????????????? | | ????????????????#### #######""#####????????????? | | ????????????????# # "" "############?? | | ????????????????#BB %# "" """"""""""""#?? | | ??????????? #BB # "" """"""""""""#?# | | ?????????? @/ ### | | ?????????? / + | | ?????????? / + | | ??????????? / ### | | ??????????? #BB # "" """"""""""""#?? | | ???????????? ??#BB # "" """"""""""""#?? | | ????????????????# # "" "############?? | | ????????????????#### #######""#####????????????? | | ???????????????????# ??????#""#????????????????? | | ???????????????????# ??????#""#????????????????? | | ???????????????????# ????????""?????????????????? | | ???????????????????# ??????????????????????????? | | ???????????????????# ??????????????????????????# | | ???????????????????# ???????????????????????????? | | ????????????????????????????????????????????????? | | ????????????????????????????????????????????????? | | ????????????????????????????????????????????????? | | ?????????????????????????????????????????????????? | | ?????????????????????????????????????????????????? | | ?????????????????????????????????????????????????? | | ?????????????????????????????????????????????????? | | ?????????????????????????????????????????????????? | | ?????????????????????????????????????????????????? | | ?????????????????????????????????????????????????? | | ?????????????????????????????????????????????????? | +----------------------------------------------------+ Best States ------------- Heat Dissipation 45 Energy Generation 16 Energy Capacity 280 Matter Stores 300 Matter Capacity 400 Sight Range 16 Robot Scan Range 16 Terrain Scan Range 20 Terrain Scan Density 110 Additional Mass Support 9 Armor Coverage 225 Resistance: EM 15 Core Shielding 20 Propulsion Shielding 66 Utility Shielding 90 Weapon Shielding 66 Evasion (%) 64 Targeting Accuracy 6 Melee Accuracy 5 Recoil Reduction 4 Offensive Hacking 54 Defensive Hacking 28 Relay Coupler Types 1 Relay Coupler Value 21 Authchip Count 6 Item Schematics ----------------- Hacking Suite | -5/Factory | Scanalyzed Mic. Fission Core | -5/Factory | Scanalyzed Adv. Hacking Suite | -5/Factory | Hacked Adv. System Shield | -5/Factory | Hacked Cld. Nuclear Pulse Thruster | -5/Factory | Scanalyzed Imp. Utility Shielding | -5/Factory | Hacked Exp. Utility Shielding | -5/Factory | Hacked Robot Schematics ------------------ None Fabricated ------------ Adv. System Shield | x1 | -5/Factory | Authchip Adv. System Shield | x1 | -5/Factory | Authchip Adv. Hacking Suite | x1 | -5/Factory | Authchip Cld. Nuclear Pulse Thruster | x1 | -5/Factory | Authchip Cld. Nuclear Pulse Thruster | x1 | -5/Factory Cld. Nuclear Pulse Thruster | x1 | -5/Factory Cld. Nuclear Pulse Thruster | x1 | -5/Factory Exp. Utility Shielding | x1 | -5/Factory Cld. Nuclear Pulse Thruster | x1 | -5/Factory Cld. Nuclear Pulse Thruster | x1 | -5/Factory Repaired ---------- Lgt. Treads | 19% | -8/Materials Imp. Terrain Scanner | 18% | -6/Factory Imp. Propulsion Shielding | 56% | -6/Factory Studied --------- Mic. Fission Core | -5/Factory | Hacked Alien Tech Used ----------------- None Achievements -------------- Plot Armor Challenges ------------ None Game ------ Seed CentriumBoreJetlance Manual? 0 Play Time 02:16:03 Cumulative 27.4 hours Start 2026.06.28 @ 13:14:41 End 2026.06.29 @ 01:27:28 Sessions 4 Manual Loads 0 Difficulty Rogue Special Mode None Game No. 36 Rogue 36 Adventurer 0 Explorer 0 Win Type - Total 0 Types 0/0/0/0/0/0/0/0/0/0 Lore% 16 Gallery% 30 Achievement% 32 Wizard Run 0 Options --------- Layout 1 ASCII 0 Keyboard 1 Movement Vi Keybinds 0 Fullscreen 1 Font 32/SmallcapsGlow Map View 77x35 Zoom Use 0% Tactical HUD 0 Map Filters NONE Filters NONE Steam 1 RUN: 4f936f24-3bec-4848-8391-bfaa81456ac9